Cogmind - Beta 10.2 @@@ ROGUE MODE // 2021.12.02 @ 11:33:31 Player: Azken Zutik Result: Destroyed by G-34 Mercenary with Small Laser Performance ------------- Evolutions (0) 0 Regions Visited (1) 200 Robots Destroyed (14) 70 Value Destroyed (209) 209 Prototype IDs (0) 0 Alien Tech Used (0) 0 Bonus (0) 0 TOTAL SCORE: 479 Bonus ------- None Cogmind --------- Core Integrity 0/250 Matter 300/300 Energy 99/100 System Corruption 4% Temperature Cool (6) Movement Core (100) Ox1 Location -10/Materials Parts ------- > --- POWER (1) -------- (None) > --- PROPULSION (2) --- (None) > --- UTILITY (2) ------ Small Storage Unit > --- WEAPON (2) ------- (None) > --- INVENTORY (6) ---- Small Matter Pod (50) Medium Matter Pod (100) Improved Terrain Scanner Light Armor Plating Peak State ------------ > --- POWER ------------ Light Ion Engine > --- PROPULSION ------- Light Treads Light Treads > --- UTILITY ---------- Small Storage Unit Light Armor Plating > --- WEAPON ----------- Small Laser Assault Rifle > --- INVENTORY -------- Ion Engine Small Matter Pod Medium Matter Pod Improved Terrain Scanner Medium Laser Mining Laser [Rating: 7] Favorites ----------- Power Light Ion Engine Engine Light Ion Engine Propulsion Light Treads Treads Light Treads Utility Small Storage Unit Storage Small Storage Unit Protection Light Armor Plating Weapon Assault Rifle Energy Gun Small Laser Ballistic Gun Assault Rifle Special Weapon Mining Laser Build | -11 -10 ------- Run | Scr Mat Slots Evolved . | . . Power . | . . Propulsion . | . . Utility . | . . Weapon . | . . Parts Attached 13 | 6 7 Power 2 | 1 1 Engine 2 | 1 1 Core . | . . Reactor . | . . Propulsion 2 | 2 . Treads 2 | 2 . Leg . | . . Wheel . | . . Hover . | . . Flight . | . . Utility 2 | 1 1 Device . | . . Storage 1 | 1 . Processor . | . . Hackware . | . . Protection 1 | . 1 Artifact . | . . Weapon 7 | 2 5 Energy Gun 3 | 1 2 Energy Cannon . | . . Ballistic Gun 2 | 1 1 Ballistic Cannon . | . . Launcher . | . . Special Weapon 2 | . 2 Impact Weapon . | . . Slashing Weapon . | . . Piercing Weapon . | . . Special Melee Weapon . | . . Unidentified Prototypes . | . . Parts Lost 9 | . 9 Power 1 | . 1 Propulsion 2 | . 2 Utility 1 | . 1 Weapon 5 | . 5 Highest Loss Streak 8 | . 8 Average Slot Usage (%) 92 | . 92 Engine 13 | . 13 Treads 24 | . 24 Storage 14 | . 14 Protection 12 | . 12 Energy Gun 10 | . 10 Ballistic Gun 14 | . 14 Naked Turns . | . . Heaviest Build 13 | 10 13 Greatest Support 40 | 40 40 Greatest Overweight (x) 2 | . 2 Average Overweight (x) . | . . Largest Inventory Capacity 6 | 6 6 Average Capacity 5 | 5 6 Most Carried 6 | 6 6 Average Carried 5 | 4 5 Final Capacity 6 | 6 6 Final Carried 6 | 6 4 Class Distribution -------------------- 100% | Mutant Dominant Class ---------------- Mutant | -10/Materials Resources | -11 -10 ----------- Run | Scr Mat Matter Collected 555 | 411 144 Remotely . | . . Salvage Created 392 | 188 204 Parts 30 | 13 17 Haulers Intercepted . | . . Recyclers Shooed . | . . Parts Field Recycled . | . . Retrieved Matter . | . . Parts Self-Destructed . | . . Prevented . | . . Kills | -11 -10 ------- Run | Scr Mat Combat Hostiles Destroyed 7 | . 7 Guns 7 | . 7 Classes Destroyed 5 | 3 2 Worker 3 | 3 . Tunneler 3 | 3 . Recycler 1 | 1 . Swarmer 3 | . 3 Grunt 4 | . 4 Best Kill Streak 2 | 2 1 Combat Bots Only 1 | . 1 Max Kills in Single Turn 1 | 1 1 Gunslinging . | . . Exploded . | . . Melee . | . . Uniques/NPCs Destroyed . | . . Combat | -11 -10 -------- Run | Scr Mat Damage Taken 1020 | . 1020 Core 252 | . 252 Absorbed by Shields . | . . Core Remaining (%) 100 | 100 . Volleys Fired 54 | 16 38 Largest 2 | 2 2 Hottest 100 | 60 100 Shots Fired 98 | 32 66 Gun 96 | 32 64 Cannon . | . . Launcher . | . . Special 2 | . 2 Kinetic 56 | 16 40 Thermal 42 | 16 26 Explosive . | . . Electromagnetic . | . . Robot Hit Streak 8 | 8 8 Robot Miss Streak 3 | 3 3 Penetration Max . | . . Secondary Targets . | . . Shots Hit Robots 64 | 18 46 Core Hits 29 | 8 21 Critical Hits . | . . Critical Kills . | . . Critical Parts Destroyed . | . . Melee Attacks . | . . Impact . | . . Slashing . | . . Piercing . | . . Sneak Attacks . | . . Combat Hostiles . | . . Follow-up Attacks . | . . Damage Inflicted 796 | 221 575 Guns 741 | 221 520 Cannons . | . . Explosions . | . . Melee . | . . Ramming 31 | . 31 Kinetic 458 | 111 347 Thermal 307 | 110 197 Explosive . | . . Electromagnetic . | . . Impact . | . . Slashing . | . . Piercing . | . . Highest Corruption 4 | . 4 Average Corruption 1 | . 1 Corruption Purged . | . . Overload Shots . | . . Overflow Damage . | . . Projectiles . | . . Explosions . | . . Melee . | . . Knockbacks 1 | . 1 Impact 1 | . 1 Kinetic . | . . Secondary . | . . Self-Inflicted Damage 11 | . 11 Shots . | . . Rammed 22 | . 22 Targets Rammed 22 | . 22 Kicked . | . . Crushed . | . . Highest Temperature 297 | 20 297 Average Temperature 108 | 15 111 Received Heat Transfer 528 | . 528 Effects 4 | . 4 Interference 4 | . 4 Siege Activations . | . . Robots Corrupted . | . . Combat Hostiles . | . . Parts Fried . | . . Impact Corruptions . | . . Robots Melted . | . . Combat Hostiles . | . . Parts Melted . | . . Heat Transferred 735 | 250 485 Parts Sabotaged . | . . Parts Stolen . | . . Parts Stripped . | . . Power Chain Reactions . | . . Missiles Intercepted . | . . Alert | -11 -10 ------- Run | Scr Mat Peak Influence 161 | 35 161 Initial 22 | . 22 Average 47 | 19 66 Maximum Alert Level . | . . Low Security (%) 100 | 100 100 Level 1 . | . . Level 2 . | . . Level 3 . | . . Level 4 . | . . Level 5 . | . . High Security . | . . Max Security . | . . Squads Dispatched 3 | . 3 Investigation . | . . Extermination . | . . Reinforcement 3 | . 3 Assault . | . . Garrison . | . . Intercept . | . . Construction Impeded . | . . Haulers Reinforced . | . . Stealth | -11 -10 --------- Run | Scr Mat Distress Signals 2 | . 2 Communications Jammed . | . . Distress Signals . | . . Times Spotted 16 | . 16 Peak Tracking Total 4 | . 4 Tactical Retreats 1 | . 1 Traps | -11 -10 ------- Run | Scr Mat Traps Triggered . | . . Indirectly . | . . Trap Hack Attempts . | . . Triggered . | . . Disarmed . | . . Reprogrammed . | . . Reused . | . . Traps Extracted . | . . Installed . | . . Triggered . | . . Machines | -11 -10 ---------- Run | Scr Mat Machines Disabled . | . . Max in Single Turn . | . . Machines Sabotaged . | . . Garrisons Compromised . | . . Overloaded Fab Kills . | . . Fab Network Shutdowns . | . . Hacking | -11 -10 --------- Run | Scr Mat Machines Accessed 4 | . 4 Terminals 4 | . 4 Fabricators . | . . Repair Stations . | . . Recycling Units . | . . Scanalyzers . | . . Garrison Access . | . . Total Hacks 9 | . 9 Successful 3 | . 3 Failed 6 | . 6 Catastrophic 2 | . 2 Database Lockouts . | . . Manual 9 | . 9 Terminals 9 | . 9 Fabricators . | . . Repair Stations . | . . Recycling Units . | . . Scanalyzers . | . . Garrison Access . | . . Terminal Hacks . | . . Fabricator Hacks . | . . Repair Station Hacks . | . . Recycling Unit Hacks . | . . Scanalyzer . | . . Garrison Access Hacks . | . . Unauthorized Hacks 3 | . 3 Terminals 3 | . 3 Assimilate 1 | . 1 Botnet 2 | . 2 Fabricators . | . . Repair Stations . | . . Recycling Units . | . . Scanalyzers . | . . Garrison Access . | . . Data Cores Recovered . | . . Used . | . . Hacking Detections 4 | . 4 Full Trace Events 1 | . 1 Feedback Events . | . . Feedback Blocked . | . . Robot Schematics Acquired . | . . Robots Built . | . . Matter . | . . Time . | . . Total Robot Build Rating . | . . Part Schematics Acquired . | . . Parts Built . | . . Matter . | . . Time . | . . Total Part Build Rating . | . . Parts Repaired . | . . Time . | . . Parts Recycled . | . . Recycled Matter . | . . Retrieved Matter . | . . Retrieved Components . | . . Parts Scanalyzed . | . . Part Schematics Acquired . | . . Parts Damaged . | . . Bothacking | -11 -10 ------------ Run | Scr Mat Used RIF Installer . | . . Robots Hacked . | . . Non-combat . | . . Combat . | . . Robot Hacks Applied . | . . Relay Couplers Released . | . . Robots Rewired . | . . Allies Hacked . | . . Hacks Repelled . | . . Allies | -11 -10 -------- Run | Scr Mat Total Allies 1 | . 1 Largest Group 1 | . 1 Highest-Rated Group 10 | . 10 Highest-Rated Ally 10 | . 10 Total Orders 4 | . 4 STAY 4 | . 4 Ally Attacks . | . . Total Damage . | . . Kills . | . . Allies Corrupted . | . . Allies Melted . | . . Intel | -11 -10 ------- Run | Scr Mat Robot Analysis Total . | . . Derelict Logs Recovered . | . . Drone Launches . | . . Drone Recoveries . | . . Exploration | -11 -10 ------------- Run | Scr Mat Turns Passed 993 | 391 602 Spaces Moved 347 | 153 194 Core 16 | 2 14 Treads 331 | 151 180 Legs . | . . Wheels . | . . Hover . | . . Flight . | . . Fastest Speed 50 | 50 100 Average Speed 157 | 158 156 Slowest Speed 160 | 160 160 Overloaded Moves . | . . Propulsion Burnouts . | . . Robots Hopped . | . . Cave-ins Triggered . | . . Exploration Rate (%) 23 | 11 36 Regions Visited 1 Branch Regions . Pre-discovered Areas . | . . Known Exits Taken . | . . Unknown Exits Taken 1 | 1 . Scrap Searched . | . . Spaces Dug . | . . Terrain Destroyed . | . . Melee . | . . Projectile . | . . AOE . | . . Terrain Rammed . | . . Walls Destroyed . | . . Machines Disabled . | . . Actions | -11 -10 --------- Run | Scr Mat Total 688 | 267 421 Wait 242 | 87 155 Move 346 | 152 194 Hop . | . . Pick Up 7 | 6 1 Fast Attach 9 | 6 3 Attach 3 | . 3 Detach 1 | . 1 Swap 1 | . 1 Drop 3 | . 3 Fire 54 | 16 38 Melee . | . . Ram 21 | . 21 Kick . | . . Crush 1 | . 1 Escape Stasis . | . . Rewire . | . . Trap . | . . Miscellaneous . | . . Route ------- -11/Scrapyard -10/Materials (discovered 1 exit: [*Mat]) History --------- Turn | Location | Event 10 | -11/Scrapyard | Discovered new exit (range 16) 392 | -11/Scrapyard | Entered Materials 393 | -10/Materials | Build established: Mutant 786 | -10/Materials | Discovered new exit (range 15) 969 | -10/Materials | Core integrity fell below 50% 985 | -10/Materials | Core integrity fell below 20% 994 | -10/Materials | Destroyed by G-34 Mercenary with Small Laser Last Messages --------------- 00957_ Destabilizing: System corrupted (+1). 00958_ Slammed into G-34 Mercenary. 00960_ G-34 Mercenary knocked back. 00961_ Slammed into G-34 Mercenary. 00962_ Lgt. Ion Engine destroyed. 00963_ Slammed into G-34 Mercenary. 00964_ Assault Rifle destroyed. 00966_ Acquired 1 matter. 00966_ Mining Laser destroyed. 00970_ Slammed into G-34 Mercenary. 00974_ Destabilizing: Core damaged (-5). 00981_ Slammed into G-34 Mercenary. 00985_ Destabilizing: System corrupted (+2). 00985_ R-06 Scavenger collects Lgt. Ion Engine. 00986_ Slammed into G-34 Mercenary. 00988_ R-06 Scavenger collects Hover Unit. 00991_ Slammed into G-34 Mercenary. 00991_ Destabilizing: System corrupted (+1). 00992_ Slammed into G-34 Mercenary. 00992_ U-05 Engineer lays Concrete. Map ----- +----------------------------------------------------+ | ?# """ # # | | ?# """"" + # | | ?# """"" # # | | ?# ! """"" # ################## # | | ?# """ # #????????????????####### | | ?# ? # #??????????????????????? | | ?????####### #??????????????????????? | | ???????????# #??????????????????????? | | ???????????# ########## ?????????? | | ???????????# ?????????? | | ???????????# ?????????? | | ???????????# ?????????? | | ???????????# ############???????????? | | ???????????# =#??????????????????????? | | ???????????# = #??????????????????????? | | ???????????# [ #?#######??????????????? | | ??????????## ==### #??????????????? | | ??????????# *%* #??????????????? | | ??????????# < #??????????????? | | ??????????# #??????????????? | | ??????????######## #??????????????? | | ?????################# #??????????????? | | ?????# %%% #?# #??????????????? | | ?????# %% #?# #??????????????? | | ?????# %g%u #?# #??????????????? | | ?????# %@ ### ###????????????? | | ?????# % %% # ####### #? | | ?????# # #? | | ?????###+########+## #? | | ???????????????# #? | | ???????????????# ####### ? | | ???????????????# ###???????? #?? | | ???????????????# #??????????????? | | ???????????????# #??????????????? | | ???????????????# """ #??????????????? | | ???????????????# """ #??????????????? | | ???????????????+ """ #??????????????? | | ???????????????# """ #??????????????? | | ???????????????# """ #??????????????? | | ??????????????? ? ??????????????? | | ??????????????? ? ?????????????? | | ?????????????? ?#+###?????????????? | | ??????????????# ???????????????????? | | ??????????????#####???????????????????? | | ??????????????????????????????????????? | | ??????????????????????????????????????? | | ??????????????????????????????????????? | | ??????????????????????????????????????? | | ??????????????????????????????????????? | | ??????????????????????????????????????? | +----------------------------------------------------+ Best States ------------- Heat Dissipation 25 Energy Generation 10 Energy Capacity 125 Matter Stores 300 Matter Capacity 300 Sight Range 16 Terrain Scan Density 10 Armor Coverage 150 Evasion (%) 40 Recoil Reduction 2 Item Schematics ----------------- None Robot Schematics ------------------ None Fabricated ------------ Nothing Alien Tech Used ----------------- None Achievements -------------- None Challenges ------------ None Game ------ Seed OverloadLobotomyRouter Manual? 0 Play Time 00:09:23 Cumulative 88.6 hours Start 2021.12.02 @ 11:26:02 End 2021.12.02 @ 11:33:31 Sessions 1 Manual Loads 0 Difficulty Rogue Special Mode None Game No. 45 Rogue 45 Adventurer 0 Explorer 0 Win Type - Total 1 Types 1/0/0/0/0/0/0/0/0 Lore% 34 Gallery% 55 Achievement% 46 Wizard Run 0 Options --------- ASCII 0 Keyboard 0 Movement Mouse Keybinds 0 Fullscreen 0 Font 28/SmallcapsGlow Map View 72x54 Tactical HUD 1 Map Filters NONE Filters NONE Steam 1 RUN: 2c729390-c711-4514-8481-e34d0e335da3